[Event "Oslo Chess Festival 2017"]
[Site "Oslo"]
[Date "2017.10.03"]
[Round "6"]
[White "Pigott, John C"]
[Black "Li, Xueyi"]
[Result "1-0"]
[ECO "B12"]
[WhiteElo "2408"]
[BlackElo "2157"]
[Annotator "NA"]
[PlyCount "61"]
[EventDate "2017.??.??"]
[EventType "swiss"]
[EventCountry "NOR"]
[SourceTitle "playchess.com"]
[Source "ChessBase"]
[SourceQuality "1"]
[TimeControl "5400+30"]

1. e4 {[%emt 0:00:07]} c6 {[%emt 0:00:06]} 2. d4 {[%emt 0:00:07]} d5 {[%emt 0:00:07]} 3. e5 {[%emt 0:00:15]} Bf5 {[%emt 0:01:36]} 4. h4 {[%emt 0:02:02]} h5 {[%emt 0:07:03]} 5. Bd3 {[%emt 0:01:18]} Bxd3 {[%emt 0:00:26]} 6. Qxd3 {[%emt 0:00:02]} e6 {[%emt 0:00:39]} 7. Bg5 {[%emt 0:00:20]} Be7 {[%emt 0:00:40]} 8. Nf3 {[%emt 0:00:11]} Nd7 {[%emt 0:01:48]} 9. Nc3 {[%emt 0:19:09]} Qa5 {[%emt 0:09:57]} 10. O-O {[%emt 0:19:05]} O-O-O $16 {[%emt 0:10:45]} 11. a4 {[%emt 0:08:35]} Bxg5 {[%emt 0:06:36]} 12. Nxg5 {[%emt 0:00:25]} Nh6 {[%emt 0:00:07]} 13. Rfb1 {[%emt 0:04:19]} Qb4 {[%emt 0:01:55]} 14. a5 {[%emt 0:07:06]} Qe7 {[%emt 0:00:08]} 15. Re1 {[%emt 0:05:38]} Ng4 {[%emt 0:07:55]} 16. Na4 {[%emt 0:09:22]} Rdf8 {[%emt 0:04:03]} 17. c4 {[%emt 0:05:00]} f6 {[%emt 0:03:07]} 18. exf6 {[%emt 0:02:54]} Qxf6 {[%emt 0:01:50]} 19. Rf1 {[%emt 0:03:11]} Qf4 {[%emt 0:05:55]} 20. g3 {[%emt 0:00:07]} Qd6 {[%emt 0:03:55]} 21. c5 {[%emt 0:02:18]} Qe7 {[%emt 0:00:35]} 22. a6 {[%emt 0:00:08]} e5 {[%emt 0:01:28]} 23. axb7+ {[%emt 0:00:07]} Kxb7 {[%emt 0:00:27]} 24. Nb6 {[%emt 0:02:19]} Nb8 {[%emt 0:09:04]} 25. Qb3 {[%emt 0:00:22]} axb6 {[%emt 0:00:49]} 26. Qxb6+ {[%emt 0:00:02]} Kc8 {[%emt 0:00:10]} 27. Ra7 {[%emt 0:00:09]} Qxa7 {[%emt 0:02:33]} 28. Qxa7 {[%emt 0:00:01]} Rf6 {[%emt 0:00:31]} 29. dxe5 {[%emt 0:01:46]} Nxe5 {[%emt 0:00:16]} 30. Re1 {[%emt 0:00:24]} Ned7 {[%emt 0:00:40]} 31. Ne6 {[%emt 0:01:03]} 1-0

[Event "Oslo Chess Festival 2017"]
[Site "Oslo"]
[Date "2017.10.03"]
[Round "6"]
[White "Vogt, Lothar"]
[Black "Bentsen, Hakon"]
[Result "1/2-1/2"]
[ECO "C98"]
[WhiteElo "2401"]
[BlackElo "2071"]
[Annotator "NA"]
[PlyCount "73"]
[EventDate "2017.??.??"]
[EventType "swiss"]
[EventCountry "NOR"]
[SourceTitle "playchess.com"]
[Source "ChessBase"]
[SourceQuality "1"]
[TimeControl "5400+30"]

1. e4 {[%emt 0:00:00]} e5 {[%emt 0:00:09]} 2. Nf3 {[%emt 0:00:02]} Nc6 {[%emt 0:00:12]} 3. Bb5 {[%emt 0:00:02]} a6 {[%emt 0:00:10]} 4. Ba4 {[%emt 0:00:02]} Nf6 {[%emt 0:00:09]} 5. O-O {[%emt 0:00:14]} Be7 {[%emt 0:00:29]} 6. Re1 {[%emt 0:02:42]} b5 {[%emt 0:00:27]} 7. Bb3 {[%emt 0:00:02]} d6 {[%emt 0:00:11]} 8. c3 {[%emt 0:00:02]} O-O {[%emt 0:02:05]} 9. h3 {[%emt 0:00:38]} Na5 {[%emt 0:00:54]} 10. Bc2 {[%emt 0:00:02]} c5 {[%emt 0:00:09]} 11. d4 {[%emt 0:00:28]} Qc7 {[%emt 0:00:07]} 12. Nbd2 {[%emt 0:01:07]} Nc6 {[%emt 0:05:49]} 13. d5 {[%emt 0:01:16]} Nd8 {[%emt 0:00:51]} 14. a4 {[%emt 0:01:36]} Ra7 {[%emt 0:02:54] C98: Closed Ruy Lopez: Chigorin Defence: 11 d4 Qc7 12 Nbd2 Nc6} (14... Rb8 15. b4 Bd7 16. bxc5 Qxc5 17. axb5 axb5 18. Ba3 Qxc3 19. Re3 Qc7 20. Bb4 Be8 21. Rc3 Qd7 22. Nb3 Nb7 23. Bd3 {½-½ (79) Zhigalko,A (2591)-Filippov,A (2582) Baku 2016}) 15. b4 $146 {[%emt 0:01:40]} ({Predecessor:} 15. Nf1 Nd7 16. Be3 Nb6 17. b3 bxa4 18. bxa4 Nc4 19. Bc1 Na5 20. Qe2 Bd7 21. Rb1 f6 22. Ne3 {1-0 (47) Malakhov,I (2442)-Manin,V (2181) St Petersburg 2012}) 15... cxb4 {[%emt 0:04:46]} 16. cxb4 {[%emt 0:00:03]} a5 {[%emt 0:01:16]} 17. axb5 {[%emt 0:03:19]} axb4 {[%emt 0:00:34]} 18. Rxa7 {[%emt 0:01:59]} Qxa7 {[%emt 0:00:05]} 19. Nb3 {[%emt 0:03:57]} Bd7 {[%emt 0:03:56]} 20. Be3 {[%emt 0:01:50]} Qb8 {[%emt 0:01:44]} 21. b6 {[%emt 0:00:41]} Nb7 {[%emt 0:00:49] [#]} 22. Qa1 $18 {[%emt 0:14:31]} Rc8 {[%emt 0:08:37]} 23. Qa7 {[%emt 0:05:22]} Nc5 {[%emt 0:02:49]} 24. Qxb8 {[%emt 0:08:21]} Rxb8 {[%emt 0:00:33]} 25. Nxc5 {[%emt 0:00:51]} dxc5 {[%emt 0:00:09]} 26. Nxe5 {[%emt 0:00:06]} Rxb6 {[%emt 0:00:14]} 27. Nc4 {[%emt 0:02:53]} Ra6 {[%emt 0:02:24]} 28. f3 {[%emt 0:11:44]} Bb5 {[%emt 0:11:13]} 29. Bb3 {[%emt 0:00:24]} Nd7 {[%emt 0:01:55]} 30. e5 {[%emt 0:01:35]} Ba4 {[%emt 0:04:09]} 31. Bxa4 {[%emt 0:05:47]} Rxa4 {[%emt 0:00:07]} 32. Rc1 {[%emt 0:03:31]} b3 {[%emt 0:02:04]} 33. d6 {[%emt 0:01:56]} Bf8 {[%emt 0:02:05]} 34. Nb2 {[%emt 0:05:29]} Ra2 {[%emt 0:02:31]} 35. Rb1 {[%emt 0:01:03]} Nxe5 {[%emt 0:00:58]} 36. Bxc5 {[%emt 0:00:28]} Ra6 {[%emt 0:00:43]} 37. f4 {[%emt 0:04:04]} 1/2-1/2

[Event "Oslo Chess Festival 2017"]
[Site "Oslo"]
[Date "2017.10.03"]
[Round "6"]
[White "Ernst, Thomas"]
[Black "Kyrkjebo, Erlend"]
[Result "1/2-1/2"]
[ECO "B76"]
[WhiteElo "2371"]
[BlackElo "2122"]
[Annotator "NA"]
[PlyCount "98"]
[EventDate "2017.??.??"]
[EventType "swiss"]
[EventCountry "NOR"]
[SourceTitle "playchess.com"]
[Source "ChessBase"]
[SourceQuality "1"]
[TimeControl "5400+30"]

1. e4 {[%emt 0:00:04]} c5 {[%emt 0:00:07]} 2. Nf3 {[%emt 0:00:06]} d6 {[%emt 0:00:16]} 3. d4 {[%emt 0:00:08]} cxd4 {[%emt 0:00:05]} 4. Nxd4 {[%emt 0:00:04]} Nf6 {[%emt 0:00:10]} 5. Nc3 {[%emt 0:00:07]} g6 {[%emt 0:00:07]} 6. Be3 {[%emt 0:00:15]} Bg7 {[%emt 0:00:07]} 7. f3 {[%emt 0:00:08]} O-O {[%emt 0:00:07]} 8. Qd2 {[%emt 0:00:07]} Nc6 {[%emt 0:00:07]} 9. g4 {[%emt 0:00:13]} Nxd4 {[%emt 0:00:55]} 10. Bxd4 {[%emt 0:00:11]} Be6 {[%emt 0:01:02]} 11. Nd5 {[%emt 0:00:38]} Bxd5 {[%emt 0:06:21]} 12. exd5 {[%emt 0:00:07]} e5 {[%emt 0:02:36]} 13. dxe6 {[%emt 0:00:49]} fxe6 {[%emt 0:01:04]} 14. O-O-O {[%emt 0:01:37]} Rc8 {[%emt 0:04:51]} 15. Kb1 {[%emt 0:18:12]} Qc7 {[%emt 0:06:32]} 16. g5 {[%emt 0:03:20]} Nd5 {[%emt 0:04:45]} 17. Bh3 $11 {[%emt 0:02:30]} Nf4 {[%emt 0:14:26]} 18. Bxg7 {[%emt 0:00:11]} Qxg7 {[%emt 0:06:20]} 19. Bg4 {[%emt 0:01:10]} d5 {[%emt 0:04:43]} 20. Rhe1 {[%emt 0:05:46]} Rce8 {[%emt 0:13:26]} 21. Qd4 {[%emt 0:06:17]} Qxd4 {[%emt 0:07:50]} 22. Rxd4 {[%emt 0:00:06]} e5 {[%emt 0:01:07]} 23. Ra4 {[%emt 0:01:43]} a6 {[%emt 0:00:20]} 24. Rb4 {[%emt 0:00:09]} Re7 {[%emt 0:06:59]} 25. Kc1 {[%emt 0:00:36]} Ng2 {[%emt 0:01:46]} 26. Re2 {[%emt 0:01:19]} Nh4 {[%emt 0:00:48]} 27. Re3 {[%emt 0:02:51]} Ng2 {[%emt 0:02:51]} 28. Reb3 {[%emt 0:03:35]} e4 {[%emt 0:07:33]} 29. fxe4 {[%emt 0:00:30]} dxe4 {[%emt 0:02:14]} 30. Rxb7 {[%emt 0:00:16]} Rf1+ {[%emt 0:02:41]} 31. Kd2 {[%emt 0:00:18]} e3+ {[%emt 0:01:05]} 32. Kc3 {[%emt 0:01:52]} Re8 {[%emt 0:00:59]} 33. Rb8 {[%emt 0:01:18]} Rff8 {[%emt 0:00:18]} 34. Rxe8 {[%emt 0:00:33]} Rxe8 {[%emt 0:00:03]} 35. Rb6 {[%emt 0:04:14]} e2 {[%emt 0:01:12]} 36. Bxe2 {[%emt 0:00:19]} Rxe2 {[%emt 0:00:06]} 37. Rxa6 {[%emt 0:00:33]} Ne1 {[%emt 0:00:10]} 38. a4 {[%emt 0:04:22]} Rxc2+ {[%emt 0:00:10]} 39. Kb3 {[%emt 0:00:07]} Rxh2 {[%emt 0:00:27]} 40. Rd6 {[%emt 0:01:03]} Rh3+ {[%emt 0:01:07]} 41. Kc4 {[%emt 0:01:03]} Rh4+ {[%emt 0:02:11]} 42. Rd4 {[%emt 0:00:52]} Rh2 {[%emt 0:00:44]} 43. b4 {[%emt 0:00:31]} Nf3 {[%emt 0:00:25]} 44. Rf4 {[%emt 0:02:09]} Nxg5 {[%emt 0:00:45]} 45. a5 {[%emt 0:01:36]} Ra2 {[%emt 0:00:43]} 46. Kb3 {[%emt 0:04:39]} Ra1 {[%emt 0:00:20]} 47. Kb2 {[%emt 0:00:12]} Ra4 {[%emt 0:00:19]} 48. Kb3 {[%emt 0:00:06]} Ra1 {[%emt 0:00:11]} 49. Kb2 {[%emt 0:00:14]} Ra4 {[%emt 0:00:48]} 1/2-1/2

[Event "Oslo Chess Festival 2017"]
[Site "Oslo"]
[Date "2017.10.03"]
[Round "6"]
[White "Myhrvold, Rune"]
[Black "Haug, Johannes"]
[Result "1/2-1/2"]
[ECO "B12"]
[WhiteElo "2243"]
[BlackElo "2379"]
[Annotator "NA"]
[PlyCount "57"]
[EventDate "2017.??.??"]
[EventType "swiss"]
[EventCountry "NOR"]
[SourceTitle "playchess.com"]
[Source "ChessBase"]
[SourceQuality "1"]
[TimeControl "5400+30"]

1. e4 {[%emt 0:00:01]} c6 {[%emt 0:00:05]} 2. d4 {[%emt 0:00:04]} d5 {[%emt 0:00:03]} 3. e5 {[%emt 0:00:16]} c5 {[%emt 0:00:07]} 4. c3 {[%emt 0:00:04]} Nc6 {[%emt 0:00:07]} 5. Be2 {[%emt 0:00:04]} cxd4 {[%emt 0:00:33]} 6. cxd4 {[%emt 0:00:07]} Bf5 {[%emt 0:00:07]} 7. Nf3 {[%emt 0:00:30]} e6 {[%emt 0:00:06]} 8. O-O {[%emt 0:01:21]} Nge7 {[%emt 0:00:16]} 9. a3 {[%emt 0:01:14]} Nc8 {[%emt 0:04:52]} 10. Nc3 {[%emt 0:04:00]} Be7 {[%emt 0:02:41]} 11. Be3 {[%emt 0:00:26]} Nb6 {[%emt 0:03:14]} 12. Nd2 {[%emt 0:04:08]} O-O {[%emt 0:05:31]} 13. Nf3 {[%emt 0:58:53]} Rc8 {[%emt 0:08:35]} 14. Nb1 {[%emt 0:08:28]} a6 {[%emt 0:17:15]} 15. Nbd2 {[%emt 0:00:38]} Na5 {[%emt 0:03:13]} 16. h3 {[%emt 0:05:26]} Nbc4 {[%emt 0:11:46]} 17. Nxc4 {[%emt 0:00:42]} dxc4 {[%emt 0:00:11]} 18. Nd2 {[%emt 0:00:34]} b5 {[%emt 0:00:30]} 19. Rc1 {[%emt 0:00:34]} Qd7 {[%emt 0:00:27]} 20. Bf3 {[%emt 0:03:39]} Bd3 {[%emt 0:04:11]} 21. Be4 {[%emt 0:01:10]} Bxf1 {[%emt 0:01:27]} 22. Kxf1 {[%emt 0:00:23]} g6 {[%emt 0:05:51]} 23. Qg4 {[%emt 0:00:12]} Nb3 {[%emt 0:07:18]} 24. Nxb3 {[%emt 0:00:16]} cxb3 {[%emt 0:00:06]} 25. Rd1 {[%emt 0:00:11]} Rc7 {[%emt 0:09:02]} 26. Rd3 {[%emt 0:00:13]} b4 {[%emt 0:00:55]} 27. axb4 {[%emt 0:01:46]} Rb8 {[%emt 0:04:51]} 28. h4 {[%emt 0:00:17]} h5 {[%emt 0:01:49]} 29. Qf4 {[%emt 0:00:10]} 1/2-1/2

[Event "Oslo Chess Festival 2017"]
[Site "Oslo"]
[Date "2017.10.03"]
[Round "6"]
[White "Nordquelle, Daniel"]
[Black "Devereaux, Maxim L"]
[Result "0-1"]
[ECO "C17"]
[WhiteElo "2203"]
[BlackElo "2357"]
[Annotator "NA"]
[PlyCount "58"]
[EventDate "2017.??.??"]
[EventType "swiss"]
[EventCountry "NOR"]
[SourceTitle "playchess.com"]
[Source "ChessBase"]
[SourceQuality "1"]
[TimeControl "5400+30"]

1. e4 {[%emt 0:00:00]} e6 {[%emt 0:00:09]} 2. d4 {[%emt 0:00:26]} d5 {[%emt 0:00:06]} 3. Nc3 {[%emt 0:02:04]} Bb4 {[%emt 0:00:07]} 4. e5 {[%emt 0:00:03]} c5 {[%emt 0:00:20]} 5. Qg4 {[%emt 0:00:06]} Ne7 {[%emt 0:00:17]} 6. dxc5 {[%emt 0:00:05]} Nbc6 {[%emt 0:00:19]} 7. Bd2 {[%emt 0:00:42]} O-O {[%emt 0:00:27]} 8. O-O-O {[%emt 0:00:06]} f5 {[%emt 0:03:47]} 9. exf6 {[%emt 0:02:02]} Rxf6 {[%emt 0:00:09]} 10. Bd3 {[%emt 0:01:06]} Bxc3 {[%emt 0:05:21]} 11. Bxc3 {[%emt 0:02:36]} e5 {[%emt 0:00:08]} 12. Qh5 {[%emt 0:22:40]} Bf5 {[%emt 0:03:08]} 13. Bxf5 {[%emt 0:01:09]} Rxf5 {[%emt 0:00:18]} 14. Qg4 {[%emt 0:02:30]} d4 {[%emt 0:02:39]} 15. Bd2 {[%emt 0:03:19] [#]} Qd5 $17 {[%emt 0:02:15]} ({Resist} 15... Rxf2 16. Nh3 $15) 16. Kb1 {[%emt 0:00:15]} b6 {[%emt 0:18:13]} 17. Nf3 {[%emt 0:10:38]} bxc5 {[%emt 0:11:16]} 18. Rhe1 {[%emt 0:01:48]} Rb8 {[%emt 0:05:06]} 19. Qe4 {[%emt 0:10:41]} c4 {[%emt 0:05:40]} 20. Bc1 {[%emt 0:00:31]} Qa5 {[%emt 0:08:16]} 21. Qe2 {[%emt 0:10:35]} d3 {[%emt 0:06:31]} 22. Qe4 {[%emt 0:04:06]} Rb4 {[%emt 0:12:57]} 23. c3 {[%emt 0:13:18]} Ra4 {[%emt 0:01:33]} 24. a3 {[%emt 0:00:20]} Qb5 {[%emt 0:00:57]} 25. Ka1 {[%emt 0:02:06]} Ra5 {[%emt 0:06:22]} 26. b4 {[%emt 0:02:51]} Rf4 {[%emt 0:01:47]} 27. Bxf4 {[%emt 0:04:03]} Rxa3+ {[%emt 0:00:06]} 28. Kb2 {[%emt 0:00:12]} Rb3+ {[%emt 0:00:05]} 29. Kc1 {[%emt 0:01:15]} Rxc3+ {[%emt 0:00:21]} 0-1

[Event "Oslo Chess Festival 2017"]
[Site "Oslo"]
[Date "2017.10.03"]
[Round "6"]
[White "Nielsen, Andre"]
[Black "Taksrud, Vidar"]
[Result "1-0"]
[ECO "B01"]
[WhiteElo "2162"]
[BlackElo "1983"]
[Annotator "NA"]
[PlyCount "81"]
[EventDate "2017.??.??"]
[EventType "swiss"]
[EventCountry "NOR"]
[SourceTitle "playchess.com"]
[Source "ChessBase"]
[SourceQuality "1"]
[TimeControl "5400+30"]

1. e4 {[%emt 0:00:02]} d5 {[%emt 0:00:14]} 2. exd5 {[%emt 0:00:14]} Nf6 {[%emt 0:00:09]} 3. d4 {[%emt 0:00:29]} Nxd5 {[%emt 0:00:11]} 4. Nf3 {[%emt 0:00:37]} e6 {[%emt 0:01:15]} 5. c4 {[%emt 0:01:21]} Bb4+ {[%emt 0:00:11]} 6. Bd2 {[%emt 0:01:06]} Bxd2+ {[%emt 0:00:14]} 7. Qxd2 {[%emt 0:00:50]} Nf6 {[%emt 0:00:54]} 8. Nc3 {[%emt 0:02:30]} O-O {[%emt 0:03:20]} 9. O-O-O {[%emt 0:06:20]} Na6 {[%emt 0:06:36]} 10. Bd3 {[%emt 0:06:38]} Nb4 {[%emt 0:03:55]} 11. Bb1 {[%emt 0:00:44]} c5 {[%emt 0:02:24]} 12. d5 {[%emt 0:08:17]} exd5 {[%emt 0:00:14]} 13. cxd5 {[%emt 0:00:33]} c4 {[%emt 0:09:08]} 14. Ne5 $14 {[%emt 0:05:50]} b5 {[%emt 0:05:52]} 15. Rhe1 {[%emt 0:19:14]} Bd7 {[%emt 0:10:56]} 16. Qd4 {[%emt 0:06:57]} a5 {[%emt 0:06:38]} 17. g4 {[%emt 0:02:20]} a4 {[%emt 0:03:22]} 18. g5 {[%emt 0:05:44]} Nh5 {[%emt 0:03:10]} 19. Qh4 {[%emt 0:02:29]} g6 {[%emt 0:00:18]} 20. Nxd7 {[%emt 0:04:10]} Qxd7 {[%emt 0:00:17]} 21. Ne4 {[%emt 0:01:33]} Nd3+ {[%emt 0:05:43]} 22. Bxd3 {[%emt 0:01:38]} cxd3 {[%emt 0:00:07]} 23. Rxd3 {[%emt 0:00:19]} Rac8+ {[%emt 0:03:04]} 24. Kb1 {[%emt 0:01:17]} Rc4 {[%emt 0:01:36]} 25. Qxh5 {[%emt 0:02:53]} Rxe4 {[%emt 0:00:15]} 26. Qd1 {[%emt 0:00:21]} Rxe1 {[%emt 0:00:40]} 27. Qxe1 {[%emt 0:00:10]} Qf5 {[%emt 0:00:13]} 28. Qd2 {[%emt 0:01:08]} Rd8 {[%emt 0:01:42]} 29. Ka1 {[%emt 0:00:39]} Rd6 {[%emt 0:01:26]} 30. a3 {[%emt 0:01:09]} Qe5 {[%emt 0:04:33]} 31. f4 {[%emt 0:02:00]} Qe4 {[%emt 0:00:59]} 32. Rd4 {[%emt 0:00:38]} Qh1+ {[%emt 0:00:57]} 33. Ka2 {[%emt 0:00:10]} Qf3 {[%emt 0:00:37]} 34. Qc3 {[%emt 0:03:11]} Qf2 {[%emt 0:04:17]} 35. Re4 {[%emt 0:01:26]} Rd8 {[%emt 0:00:45]} 36. d6 {[%emt 0:03:07]} Qb6 {[%emt 0:02:25]} 37. d7 {[%emt 0:01:37]} f5 {[%emt 0:03:37]} 38. Re8+ {[%emt 0:00:37]} Kf7 {[%emt 0:00:31]} 39. Rxd8 Qxd8 40. Qf6+ Qxf6 41. gxf6 1-0

[Event "Oslo Chess Festival 2017"]
[Site "Oslo"]
[Date "2017.10.03"]
[Round "6"]
[White "Zhao, Shengxin"]
[Black "Mikelsen, Mattis"]
[Result "1-0"]
[ECO "E05"]
[WhiteElo "2113"]
[BlackElo "1754"]
[Annotator "NA"]
[PlyCount "47"]
[EventDate "2017.??.??"]
[EventType "swiss"]
[EventCountry "NOR"]
[SourceTitle "playchess.com"]
[Source "ChessBase"]
[SourceQuality "1"]
[TimeControl "5400+30"]

1. d4 {[%emt 0:00:02]} Nf6 {[%emt 0:00:04]} 2. c4 {[%emt 0:00:10]} e6 {[%emt 0:00:04]} 3. g3 {[%emt 0:00:16]} d5 {[%emt 0:00:03]} 4. Bg2 {[%emt 0:00:04]} Be7 {[%emt 0:00:05]} 5. Nf3 {[%emt 0:00:05]} O-O {[%emt 0:00:05]} 6. O-O {[%emt 0:01:18]} dxc4 {[%emt 0:00:18]} 7. Qc2 {[%emt 0:00:05]} a6 {[%emt 0:00:04]} 8. a4 {[%emt 0:00:23]} Bd7 {[%emt 0:00:04]} 9. Rd1 {[%emt 0:00:10]} Bc6 {[%emt 0:02:10]} 10. Nc3 {[%emt 0:01:52]} Bxf3 {[%emt 0:00:07]} 11. Bxf3 {[%emt 0:00:06]} Nc6 {[%emt 0:00:04]} 12. Bxc6 {[%emt 0:00:07]} bxc6 {[%emt 0:00:05]} 13. a5 {[%emt 0:00:05]} Rb8 {[%emt 0:02:05]} 14. Qa4 {[%emt 0:00:36]} Rb4 {[%emt 0:15:00]} 15. Qxc6 {[%emt 0:01:47]} Qd6 {[%emt 0:06:07]} 16. Qf3 {[%emt 0:04:26]} Rd8 {[%emt 0:03:08]} 17. Bf4 {[%emt 0:41:56]} Qd7 {[%emt 0:00:32]} 18. Rd2 {[%emt 0:06:43]} Rdb8 {[%emt 0:10:47]} 19. Ra2 {[%emt 0:01:26]} h6 {[%emt 0:07:38]} 20. e4 {[%emt 0:00:59]} Qc6 {[%emt 0:00:07]} 21. d5 {[%emt 0:00:42]} exd5 {[%emt 0:04:29]} 22. e5 {[%emt 0:01:13]} Nd7 {[%emt 0:08:34]} 23. Qxd5 {[%emt 0:02:01]} Qxd5 {[%emt 0:01:21]} 24. Nxd5 {[%emt 0:00:29]} 1-0

[Event "Oslo Chess Festival 2017"]
[Site "Oslo"]
[Date "2017.10.03"]
[Round "6"]
[White "Federovski, Adi"]
[Black "Grindbakken, Erik"]
[Result "1-0"]
[ECO "C90"]
[WhiteElo "2030"]
[BlackElo "1675"]
[Annotator "NA"]
[PlyCount "103"]
[EventDate "2017.??.??"]
[EventType "swiss"]
[EventCountry "NOR"]
[SourceTitle "playchess.com"]
[Source "ChessBase"]
[SourceQuality "1"]
[TimeControl "5400+30"]

1. e4 {[%emt 0:00:02]} e5 {[%emt 0:00:09]} 2. Nf3 {[%emt 0:00:09]} Nc6 {[%emt 0:00:08]} 3. Bb5 {[%emt 0:00:06]} a6 {[%emt 0:00:23]} 4. Ba4 {[%emt 0:00:07]} Nf6 {[%emt 0:00:12]} 5. d3 {[%emt 0:00:13]} b5 {[%emt 0:00:32]} 6. Bb3 {[%emt 0:00:05]} Be7 {[%emt 0:00:32]} 7. O-O {[%emt 0:00:11]} d6 {[%emt 0:00:37]} 8. c3 {[%emt 0:00:16]} O-O {[%emt 0:00:36]} 9. Nbd2 {[%emt 0:00:23]} Na5 {[%emt 0:00:17]} 10. Bc2 {[%emt 0:00:06]} c5 {[%emt 0:00:11]} 11. Re1 {[%emt 0:00:38]} Nc6 {[%emt 0:00:16]} 12. Nf1 {[%emt 0:00:24]} Qc7 {[%emt 0:00:19]} 13. Ne3 {[%emt 0:01:34]} h6 {[%emt 0:00:54] C90: Closed Ruy Lopez with 7...d6: Early deviations} (13... Be6 14. Ng5 h6 15. Nxe6 fxe6 16. Qf3 Rae8 17. Qh3 Bd8 18. Bd2 Qf7 19. Rf1 Qh5 20. Qxh5 Nxh5 21. a4 Bb6 22. axb5 axb5 {1-0 (33) Fedorchuk,S (2656)-Olafsson,T (2266) Reykjavik 2013}) 14. Nd5 {[%emt 0:02:40]} Qd8 {[%emt 0:01:24]} 15. h3 {[%emt 0:01:57]} Be6 {[%emt 0:00:08]} 16. Nxe7+ {[%emt 0:00:50]} Qxe7 {[%emt 0:00:40]} 17. Be3 $146 {[%emt 0:04:43]} ({Predecessor:} 17. d4 Bc8 18. dxc5 dxc5 19. Nh4 Qc7 20. Qf3 Nh7 21. Nf5 {1-0 (60) Delai,P (2042)-De Oliveira,G Curitiba 2011}) 17... Rfd8 {[%emt 0:03:41]} 18. d4 {[%emt 0:04:11]} cxd4 {[%emt 0:01:54]} 19. cxd4 {[%emt 0:00:08]} exd4 {[%emt 0:01:28]} 20. Nxd4 {[%emt 0:00:52]} Nxd4 {[%emt 0:07:32]} 21. Bxd4 {[%emt 0:04:33]} Rac8 {[%emt 0:00:47]} 22. Bb1 {[%emt 0:03:13]} Nd7 {[%emt 0:05:07]} 23. f4 {[%emt 0:03:00]} f6 {[%emt 0:02:38]} 24. Qf3 $14 {[%emt 0:05:37]} Rc4 {[%emt 0:05:31]} 25. Bf2 {[%emt 0:05:00]} Rdc8 {[%emt 0:05:48]} 26. Bd3 {[%emt 0:00:40]} R4c6 {[%emt 0:00:08]} 27. Bh4 {[%emt 0:01:16]} Qf7 {[%emt 0:09:50]} 28. a4 {[%emt 0:04:15]} bxa4 {[%emt 0:02:01]} 29. Bf2 {[%emt 0:06:06]} Bb3 {[%emt 0:01:03]} 30. Qg3 {[%emt 0:08:17]} Qe8 {[%emt 0:05:23]} 31. Kh1 {[%emt 0:02:45]} Qf7 {[%emt 0:03:48]} 32. Bd4 {[%emt 0:02:08]} Nc5 {[%emt 0:05:47]} 33. Bb1 {[%emt 0:04:27]} Ne6 {[%emt 0:00:53]} 34. Bc3 {[%emt 0:00:27]} Nc7 {[%emt 0:02:56]} 35. e5 {[%emt 0:04:59]} dxe5 {[%emt 0:00:28]} 36. Qd3 {[%emt 0:01:13]} Nb5 {[%emt 0:07:07]} 37. Qh7+ {[%emt 0:04:20]} Kf8 {[%emt 0:00:09]} 38. Bb4+ {[%emt 0:00:09]} Nd6 {[%emt 0:00:17]} 39. fxe5 {[%emt 0:00:40]} fxe5 {[%emt 0:01:02]} 40. Bd3 {[%emt 0:02:52]} Ke7 {[%emt 0:04:30]} 41. Rxe5+ {[%emt 0:00:48]} Kd7 {[%emt 0:00:28]} 42. Rf1 {[%emt 0:05:09]} Rc1 {[%emt 0:00:23]} 43. Be1 {[%emt 0:00:07]} Qg8 {[%emt 0:01:25]} 44. Bf5+ {[%emt 0:00:39]} Kc7 {[%emt 0:01:22]} 45. Re7+ {[%emt 0:02:23]} Kb8 {[%emt 0:00:25]} 46. Qg6 {[%emt 0:00:19]} R8c6 {[%emt 0:03:51]} 47. Rxg7 {[%emt 0:01:15]} Qc4 {[%emt 0:01:02]} 48. Bd3 {[%emt 0:00:35]} Qc5 {[%emt 0:01:17]} 49. Kh2 {[%emt 0:02:20]} Nc8 {[%emt 0:04:40]} 50. Bg3+ {[%emt 0:01:22]} Ka8 {[%emt 0:00:30]} 51. Rxc1 {[%emt 0:01:51]} Qxc1 {[%emt 0:02:08]} 52. Be4 {[%emt 0:00:15]} 1-0

[Event "Oslo Chess Festival 2017"]
[Site "Oslo"]
[Date "2017.10.03"]
[Round "6"]
[White "Bruaset, Eivind"]
[Black "Dolzhykova, Kateryna"]
[Result "1-0"]
[ECO "B76"]
[WhiteElo "2012"]
[BlackElo "2270"]
[Annotator "NA"]
[PlyCount "63"]
[EventDate "2017.??.??"]
[EventType "swiss"]
[EventCountry "NOR"]
[SourceTitle "playchess.com"]
[Source "ChessBase"]
[SourceQuality "1"]
[TimeControl "5400+30"]

1. e4 {[%emt 0:00:02]} c5 {[%emt 0:00:07]} 2. Nf3 {[%emt 0:00:06]} d6 {[%emt 0:00:04]} 3. d4 {[%emt 0:00:05]} cxd4 {[%emt 0:00:04]} 4. Nxd4 {[%emt 0:00:06]} Nf6 {[%emt 0:00:05]} 5. Nc3 {[%emt 0:00:05]} g6 {[%emt 0:00:08]} 6. Be3 {[%emt 0:00:06]} Bg7 {[%emt 0:00:06]} 7. f3 {[%emt 0:00:05]} O-O {[%emt 0:00:09]} 8. Qd2 {[%emt 0:00:05]} Nc6 {[%emt 0:00:11]} 9. O-O-O {[%emt 0:00:09]} d5 {[%emt 0:00:17]} 10. Qe1 {[%emt 0:00:14]} e5 {[%emt 0:00:09]} 11. Nxc6 {[%emt 0:00:11]} bxc6 {[%emt 0:00:04]} 12. exd5 {[%emt 0:00:07]} Nxd5 {[%emt 0:00:05]} 13. Bc4 {[%emt 0:00:09]} Be6 {[%emt 0:00:07]} 14. Ne4 {[%emt 0:00:12]} Qc7 {[%emt 0:01:54]} 15. Bc5 {[%emt 0:00:09]} Rfd8 {[%emt 0:00:08]} 16. g4 {[%emt 0:00:18]} h6 {[%emt 0:00:18] B76: Sizilianisch (Moderne Drachen-Variante)} (16... Nf4 17. Qc3 Rd4 18. Bxd4 exd4 19. Qb4 d3 20. Bxe6 Ne2+ 21. Kb1 Rb8 22. Bxf7+ Kh8 23. Qxb8+ Qxb8 24. c3 Nxc3+ 25. Nxc3 Bxc3 {1-0 (41) Svidler,P (2738)-Radjabov,T (2744) Sochi 2008}) 17. h4 {[%emt 0:00:07]} f5 {[%emt 0:03:36]} 18. gxf5 {[%emt 0:00:17]} gxf5 {[%emt 0:00:07]} 19. Ng3 {[%emt 0:00:03] [#]} e4 $146 {[%emt 0:09:20]} ({Vorgänger:} 19... Kh7 20. Rg1 Qf7 21. Bb3 a5 22. c3 Nf4 23. Bc2 Rxd1+ 24. Qxd1 {½-½ (39) Repp,H (2492)-Kiss,A (2514) ICCF email 2009}) 20. Nh5 {[%emt 0:17:37]} Bh8 $2 {[%emt 0:23:15]} (20... Nf4 21. Bxe6+ Nxe6) 21. fxe4 $18 {[%emt 0:05:30]} Qe5 {[%emt 0:27:29]} 22. Qg1+ {[%emt 0:15:08]} Kf7 {[%emt 0:01:42]} 23. Bd4 {[%emt 0:00:28]} Qxe4 {[%emt 0:07:19]} 24. Bxd5 {[%emt 0:01:20]} Rxd5 {[%emt 0:09:09]} 25. Bxh8 {[%emt 0:02:03]} Rxd1+ {[%emt 0:00:04]} 26. Kxd1 {[%emt 0:01:35]} Qf3+ {[%emt 0:00:23]} 27. Kc1 {[%emt 0:00:02]} Rg8 {[%emt 0:00:35]} 28. Qh2 {[%emt 0:10:45]} Rxh8 {[%emt 0:08:50]} 29. Qc7+ {[%emt 0:02:23]} Kg6 {[%emt 0:00:01]} 30. Nf4+ {[%emt 0:00:04]} Kf6 {[%emt 0:00:04]} 31. Re1 {[%emt 0:00:37]} Re8 {[%emt 0:05:12]} 32. Qe5+ {[%emt 0:00:16] Bc8 [%emt 00:02:20]} 1-0